bitfinex/quotes_BTCUSD_20241130
["timestamp","ask_amount","ask_price","bid_price","bid_amount"]
[1732942401838,0.0008655,96771.0,96770.0,0.125431]
[1732942402293,0.0008655,96771.0,96770.0,0.124431]
[1732942402412,0.0008655,96771.0,96770.0,0.130431]
[1732942402629,0.0008655,96771.0,96770.0,0.133431]
[1732942403044,0.0008655,96771.0,96770.0,0.130431]
[1732942403273,0.0008655,96771.0,96770.0,0.133431]
[1732942403681,0.0008655,96771.0,96770.0,0.127431]
[1732942404157,0.0008655,96771.0,96770.0,0.133431]
[1732942404391,0.0008655,96771.0,96770.0,0.127431]
[1732942404609,0.0008655,96771.0,96770.0,0.124431]
[1732942404832,0.0008655,96771.0,96770.0,0.12781643]
[1732942405040,0.0008655,96771.0,96770.0,0.13181643]
[1732942405265,0.0008655,96771.0,96770.0,0.13162725]
[1732942405474,0.0008655,96771.0,96770.0,0.12762725]
[1732942405948,0.0008655,96771.0,96770.0,0.13162725]
[1732942406170,0.0008655,96771.0,96770.0,0.13335825]
[1732942408841,0.01206024,96771.0,96770.0,0.13335825]
[1732942409091,0.0008655,96771.0,96770.0,0.13335825]
[1732942414612,0.01175464,96771.0,96770.0,0.13335825]
[1732942416211,0.0008655,96771.0,96770.0,0.13335825]
[1732942417066,0.0008655,96773.0,96771.0,0.1252]
[1732942417258,0.0008655,96773.0,96770.0,0.013731]
[1732942417525,0.0008655,96773.0,96772.0,0.1252]
[1732942419048,0.0008655,96773.0,96772.0,0.1322]
[1732942419233,0.0008655,96773.0,96772.0,0.1362]
[1732942423105,0.01183628,96773.0,96772.0,0.1362]
[1732942424273,0.00683628,96773.0,96772.0,0.1362]
[1732942424488,0.0008655,96775.0,96773.0,0.0473]
[1732942426084,0.0008655,96775.0,96773.0,0.0533]
[1732942426716,0.0008655,96775.0,96773.0,0.0563]
[1732942427365,0.01206466,96775.0,96773.0,0.0563]
[1732942427823,0.103333,96774.0,96773.0,0.0563]
[1732942428052,0.01206466,96775.0,96773.0,0.0563]
[1732942428264,0.00306477,96774.0,96773.0,0.0563]
[1732942428750,0.00306477,96774.0,96773.0,0.0533]
[1732942429220,0.01206466,96775.0,96773.0,0.0533]
[1732942429462,0.00306477,96774.0,96773.0,0.0533]
[1732942430104,0.01206466,96775.0,96773.0,0.0573]
[1732942430290,0.0030644,96774.0,96773.0,0.0573]
[1732942430536,0.0030644,96774.0,96773.0,0.0513]
[1732942430751,0.0030644,96774.0,96773.0,0.0583]
[1732942431159,0.0030644,96774.0,96773.0,0.0513]
[1732942431357,0.0030644,96774.0,96773.0,0.0573]
[1732942431697,0.0030644,96774.0,96773.0,0.0513]
[1732942431906,0.0030644,96774.0,96773.0,0.0583]
[1732942436264,0.0030644,96774.0,96773.0,0.244534]
[1732942436477,0.0008655,96775.0,96773.0,0.244534]
[1732942436715,0.0008655,96775.0,96774.0,0.0472]
[1732942437606,0.00392867,96775.0,96774.0,0.150533]
[1732942437839,0.00392867,96775.0,96774.0,0.0472]
[1732942438455,0.00392867,96775.0,96774.0,0.0502]
[1732942438661,0.00392867,96775.0,96774.0,0.0562]
[1732942442606,0.0008655,96775.0,96774.0,0.159533]
[1732942442826,0.00461723,96775.0,96774.0,0.159533]
[1732942443047,0.0008655,96775.0,96774.0,0.0562]
[1732942443780,0.00461723,96775.0,96774.0,0.0562]
[1732942443976,0.01215181,96775.0,96774.0,0.0562]
[1732942444188,0.00461723,96775.0,96774.0,0.0562]
[1732942446447,0.00461723,96775.0,96774.0,0.159533]
[1732942446881,0.00461723,96775.0,96774.0,0.240833]
[1732942447094,0.0008655,96775.0,96774.0,0.240833]
[1732942447859,0.0008655,96775.0,96774.0,0.34367821]
[1732942453042,0.0008655,96775.0,96774.0,0.34540921]
[1732942464737,0.0008652,96779.0,96778.0,0.103329]
[1732942464950,0.0008652,96779.0,96778.0,0.149529]
[1732942465971,0.0008652,96779.0,96778.0,0.151529]
[1732942466210,0.0008652,96779.0,96778.0,0.155529]
[1732942471043,0.0008652,96779.0,96778.0,0.231529]
[1732942471929,0.0008652,96779.0,96778.0,0.229529]
[1732942472394,0.0008652,96779.0,96778.0,0.238529]
[1732942472622,0.0008652,96779.0,96778.0,0.234529]
[1732942473052,0.0008652,96779.0,96778.0,0.239529]
[1732942475510,0.0017312,96780.0,96779.0,0.103328]
[1732942475665,0.0017312,96780.0,96779.0,0.151028]
[1732942477032,0.0017312,96780.0,96779.0,0.160028]
[1732942477925,0.0017312,96780.0,96779.0,0.165028]
[1732942483727,0.0017312,96780.0,96779.0,0.160028]
[1732942483956,0.0017312,96780.0,96779.0,0.165028]
[1732942484835,0.0017312,96780.0,96779.0,0.156028]
[1732942485036,0.0017312,96780.0,96779.0,0.165028]
[1732942487289,0.0017312,96780.0,96779.0,0.246428]
[1732942493917,0.0017312,96780.0,96779.0,0.241428]
[1732942494266,0.0017312,96780.0,96779.0,0.237428]
[1732942494435,0.0017312,96780.0,96779.0,0.246428]
[1732942494643,0.0017312,96780.0,96779.0,0.241428]
[1732942494908,0.0017312,96780.0,96779.0,0.232428]
[1732942495114,0.0017312,96780.0,96779.0,0.246428]
[1732942501219,0.0017312,96780.0,96779.0,0.2481588]
[1732942520317,0.00916841,96780.0,96779.0,0.2481588]
[1732942520579,0.00916841,96780.0,96779.0,0.0157308]
[1732942520796,0.11249541,96780.0,96779.0,0.0157308]
[1732942531321,0.11249541,96780.0,96779.0,0.1447308]
[1732942531322,0.00916841,96780.0,96779.0,0.1447308]
[1732942531538,0.00916841,96780.0,96779.0,0.0157308]
[1732942531539,0.11249541,96780.0,96779.0,0.0157308]
[1732942533518,0.12371141,96780.0,96779.0,0.0157308]
[1732942536414,0.11249541,96780.0,96779.0,0.0157308]
[1732942541294,0.12165513,96780.0,96779.0,0.0157308]
[1732942546320,0.11057764,96780.0,96779.0,0.0157308]
[1732942551188,0.12161762,96780.0,96779.0,0.0157308]
[1732942552729,0.12161762,96780.0,96779.0,0.0620308]
[1732942556136,0.11057764,96780.0,96779.0,0.0620308]
[1732942565848,0.12171617,96780.0,96779.0,0.0620308]
[1732942566253,0.11057764,96780.0,96779.0,0.0620308]
[1732942566548,0.1104548,96780.0,96779.0,0.0620308]
[1732942569179,0.1104548,96780.0,96779.0,0.0157308]
[1732942573509,0.12155694,96780.0,96779.0,0.0157308]
[1732942574203,0.1312361,96780.0,96779.0,0.0157308]
[1732942575117,0.1312361,96780.0,96779.0,0.0107308]
[1732942575550,0.12155694,96780.0,96779.0,0.0107308]
[1732942576247,0.1104548,96780.0,96779.0,0.0017308]
[1732942576466,0.1104548,96780.0,96779.0,0.0027308]
[1732942576696,0.13086195,96780.0,96779.0,0.0017308]
[1732942577118,0.13086195,96780.0,96779.0,0.0027308]
[1732942582527,0.14207356,96780.0,96779.0,0.0027308]
[1732942586111,0.13086195,96780.0,96779.0,0.0027308]
[1732942592681,0.1417933,96780.0,96779.0,0.0027308]
[1732942596263,0.13086195,96780.0,96779.0,0.0027308]
[1732942602825,0.14204046,96780.0,96779.0,0.0027308]
[1732942606428,0.13086195,96780.0,96779.0,0.0027308]
[1732942611420,0.13086195,96780.0,96779.0,0.0522308]
[1732942611641,0.1104548,96780.0,96779.0,0.1334308]
[1732942612801,0.12144132,96780.0,96779.0,0.1334308]
[1732942616523,0.1104548,96780.0,96779.0,0.1334308]
[1732942623352,0.12133888,96780.0,96779.0,0.1334308]
[1732942626382,0.1104548,96780.0,96779.0,0.1334308]
[1732942632687,0.12142488,96780.0,96779.0,0.1334308]
[1732942633955,0.01809788,96780.0,96779.0,0.1334308]
[1732942634156,0.01809788,96780.0,96779.0,0.2367588]
[1732942634371,0.00160836,96780.0,96779.0,0.2367588]
[1732942635021,0.00160836,96780.0,96779.0,0.1324308]
[1732942635252,0.00160836,96780.0,96779.0,0.2357588]
[1732942635882,0.00160836,96780.0,96779.0,0.2367588]
[1732942636119,0.00160836,96780.0,96779.0,0.2357588]
[1732942636362,0.00160836,96780.0,96779.0,0.1374308]
[1732942636601,0.00160836,96780.0,96779.0,0.1464308]
[1732942637048,0.00160836,96780.0,96779.0,0.2497588]
[1732942637843,0.00160836,96780.0,96779.0,0.1464308]
[1732942638049,0.00160836,96780.0,96779.0,0.2497588]
[1732942642986,0.01253974,96780.0,96779.0,0.2497588]
[1732942645188,0.00160836,96780.0,96779.0,0.2497588]
[1732942647132,0.00160836,96780.0,96779.0,0.1464308]
[1732942648007,0.00160836,96780.0,96779.0,0.2497588]
[1732942648221,0.00160836,96780.0,96779.0,0.1464308]
[1732942648641,0.01255739,96780.0,96779.0,0.1464308]
[1732942648845,0.00160836,96780.0,96779.0,0.1464308]
[1732942649089,0.00160836,96780.0,96779.0,0.2497588]
[1732942672491,0.00160836,96780.0,96779.0,0.1464308]
[1732942673117,0.00160836,96780.0,96779.0,0.2497588]
[1732942675565,0.01287876,96780.0,96779.0,0.2497588]
[1732942676420,0.00160836,96780.0,96779.0,0.2497588]
[1732942697944,0.00160836,96780.0,96779.0,0.0652308]
[1732942697945,0.10493536,96780.0,96779.0,0.0652308]
[1732942705678,0.11601084,96780.0,96779.0,0.0652308]
[1732942706554,0.10493536,96780.0,96779.0,0.0652308]
[1732942715798,0.11602297,96780.0,96779.0,0.0652308]
[1732942716362,0.10493536,96780.0,96779.0,0.0652308]
[1732942725935,0.11600974,96780.0,96779.0,0.0652308]
[1732942726504,0.10493536,96780.0,96779.0,0.0652308]
[1732942726923,0.10493536,96780.0,96779.0,0.0157308]
[1732942734191,0.11622091,96780.0,96779.0,0.0157308]
[1732942736562,0.10493536,96780.0,96779.0,0.0157308]
[1732942739299,0.10493536,96780.0,96779.0,0.0635308]
[1732942741406,0.00160836,96780.0,96779.0,0.1386308]
[1732942742244,0.10493536,96780.0,96779.0,0.1386308]
[1732942743929,0.00160836,96780.0,96779.0,0.1386308]
[1732942744917,0.01290283,96780.0,96779.0,0.1386308]
[1732942746404,0.00160836,96780.0,96779.0,0.1386308]
[1732942749474,0.00160836,96780.0,96779.0,0.2419588]
[1732942751833,0.01275921,96780.0,96779.0,0.2419588]
[1732942752041,0.00160836,96780.0,96779.0,0.2419588]
[1732942761117,0.00160836,96780.0,96779.0,0.34480401]
[1732942793016,0.00160836,96780.0,96779.0,0.2419588]
[1732942793225,0.00160836,96780.0,96779.0,0.1668588]
[1732942799083,0.00160836,96780.0,96779.0,0.2449588]
[1732942799441,0.00160836,96780.0,96779.0,0.34780401]
[1732942799874,0.00060836,96780.0,96779.0,0.34780401]
[1732942803004,0.00060836,96780.0,96779.0,0.34280401]
[1732942803568,0.00060836,96780.0,96779.0,0.34980401]
[1732942803715,0.00060836,96780.0,96779.0,0.34080401]
[1732942804123,0.00060836,96780.0,96779.0,0.34980401]
[1732942806992,0.00060836,96780.0,96779.0,0.38206128]
[1732942807512,0.00060836,96780.0,96779.0,0.34980401]
[1732942808885,0.00060836,96780.0,96779.0,0.34080401]
[1732942809311,0.00060836,96780.0,96779.0,0.33380401]
[1732942809563,0.00060836,96780.0,96779.0,0.34080401]
[1732942810195,0.00060836,96780.0,96779.0,0.33380401]
[1732942810496,0.00060836,96780.0,96779.0,0.34080401]
[1732942810902,0.00060836,96780.0,96779.0,0.34980401]
[1732942811109,0.00060836,96780.0,96779.0,0.38203498]
[1732942811317,3.6e-07,96780.0,96779.0,0.43650768]
[1732942811523,3.6e-07,96780.0,96779.0,0.40203498]
[1732942811725,0.0017312,96788.0,96783.0,0.01]
[1732942811931,0.0017312,96788.0,96787.0,0.103319]
[1732942812154,0.0017312,96788.0,96787.0,0.36762344]
[1732942812381,0.0017312,96788.0,96787.0,0.36579518]
[1732942812936,0.00179099,96788.0,96787.0,0.36579518]
[1732942813351,0.00179099,96788.0,96787.0,0.36679518]
[1732942814648,0.00179099,96788.0,96787.0,0.36779518]
[1732942814846,0.0002,96819.0,96812.0,0.103292]
[1732942815107,0.75612406,96813.0,96812.0,0.103292]
[1732942816275,0.75612406,96813.0,96812.0,0.117292]
[1732942821914,0.75612406,96813.0,96812.0,0.103292]
[1732942822328,0.75612406,96813.0,96812.0,0.117292]
[1732942824589,0.75612406,96813.0,96812.0,0.103292]
[1732942824833,0.76065788,96813.0,96812.0,0.34213721]
[1732942825452,0.76065788,96813.0,96812.0,0.34913721]
[1732942825655,0.76065788,96813.0,96812.0,0.34013721]
[1732942825857,0.76065788,96813.0,96812.0,0.33313721]
[1732942826325,0.76065788,96813.0,96812.0,0.34213721]
[1732942826764,0.76065788,96813.0,96812.0,0.34913721]
[1732942827184,0.0008652,96844.0,96818.0,0.01]
[1732942827392,0.0008652,96844.0,96838.0,0.103265]
[1732942827605,0.0008652,96844.0,96838.0,0.2079377]
[1732942829361,0.0008652,96844.0,96838.0,0.3529377]
[1732942829570,0.0008652,96844.0,96838.0,0.35111021]
[1732942829783,0.0008652,96844.0,96838.0,0.34211021]
[1732942830414,0.0008652,96844.0,96843.0,0.242259]
[1732942830619,0.0008652,96844.0,96843.0,0.34510421]
[1732942831682,0.00092498,96844.0,96843.0,0.34610421]
[1732942832214,0.00092498,96844.0,96843.0,0.34710421]
[1732942833282,0.0008655,96848.0,96843.0,0.34710421]
[1732942833283,0.0008655,96848.0,96847.0,0.402255]
[1732942833517,0.00146321,96848.0,96847.0,0.50510021]
[1732942834761,0.00146321,96848.0,96847.0,0.50610021]
[1732942835261,0.00042479,96855.0,96854.0,0.402248]
[1732942835467,0.00042479,96855.0,96854.0,0.50509321]
[1732942837452,0.0008653,96867.0,96866.0,0.273235]
[1732942837659,0.0008653,96867.0,96866.0,0.49508021]
[1732942837970,0.0008653,96867.0,96866.0,0.34508021]
[1732942838172,0.0008653,96867.0,96866.0,0.20608021]
[1732942838386,0.0008653,96867.0,96866.0,0.20790726]
[1732942839697,0.0008653,96867.0,96866.0,0.20890726]
[1732942840604,0.0008653,96867.0,96866.0,0.20990726]
[1732942847537,0.0008653,96867.0,96866.0,0.25950726]
[1732942847746,0.0008653,96867.0,96866.0,0.25768021]
[1732942850039,0.0008653,96867.0,96866.0,0.20808021]
[1732942850265,0.0008653,96867.0,96866.0,0.20990716]
[1732942852525,0.015,96886.0,96872.0,0.103229]
[1732942852771,0.015,96886.0,96872.0,0.20607421]
[1732942852976,0.015,96886.0,96872.0,0.20790116]
[1732942853827,0.015,96886.0,96872.0,0.20990116]
[1732942855897,0.1385771,96873.0,96872.0,0.00382695]
[1732942856118,0.1385771,96873.0,96872.0,0.002]
[1732942856778,0.2418041,96873.0,96872.0,0.001]
[1732942856979,0.2418041,96873.0,96858.0,0.00182722]
[1732942856980,0.1385771,96873.0,96858.0,0.00182722]
[1732942857191,0.1385771,96873.0,96872.0,0.008]
[1732942857417,0.2418041,96873.0,96872.0,0.017]
[1732942857624,0.1385771,96873.0,96858.0,0.10467244]
[1732942857826,0.103233,96869.0,96858.0,0.10467244]
[1732942858069,0.1385771,96873.0,96859.0,0.103241]
[1732942858272,0.103229,96872.0,96858.0,0.20791544]
[1732942858491,0.1385771,96873.0,96858.0,0.10467244]
[1732942858705,0.2418041,96873.0,96862.0,0.103238]
[1732942858924,0.103229,96872.0,96862.0,0.103238]
[1732942859343,0.103231,96870.0,96860.0,0.103241]
[1732942859555,0.10323,96871.0,96860.0,0.103241]
[1732942859792,0.001,96869.0,96860.0,0.103241]
[1732942860212,0.206458,96872.0,96860.0,0.103241]
[1732942860416,0.207458,96872.0,96862.0,0.017]
[1732942860633,0.206462,96870.0,96862.0,0.017]
[1732942860842,0.103236,96866.0,96862.0,0.008]
[1732942861052,0.206464,96869.0,96862.0,0.008]
[1732942861053,0.103233,96869.0,96862.0,0.008]
[1732942861256,0.104233,96869.0,96862.0,0.008]
[1732942861455,0.104233,96869.0,96860.0,0.112241]
[1732942861456,0.103233,96868.0,96860.0,0.103241]
[1732942861603,0.20647,96866.0,96858.0,0.10467243]
[1732942861802,0.206472,96865.0,96858.0,0.10284521]
[1732942862006,0.207465,96869.0,96858.0,0.10284521]
[1732942862208,0.103239,96863.0,96858.0,0.10284521]
[1732942862420,0.206466,96868.0,96858.0,0.20608721]
[1732942862625,0.103236,96865.0,96858.0,0.20791443]
[1732942862851,0.103238,96864.0,96862.0,0.009]
[1732942863004,0.103238,96863.0,96860.0,0.007]
[1732942863216,0.0018653,96872.0,96859.0,0.0017306]
[1732942863419,0.103241,96860.0,96859.0,0.0017306]
[1732942864439,0.103241,96860.0,96859.0,0.0087306]
[1732942865857,0.103241,96860.0,96859.0,0.0017306]
[1732942866373,0.104241,96860.0,96859.0,0.0107306]
[1732942867015,0.105241,96860.0,96859.0,0.0197306]
[1732942869978,0.183641,96860.0,96859.0,0.0197306]
[1732942870910,0.18309944,96860.0,96859.0,0.0197306]
[1732942871325,0.10469944,96860.0,96859.0,0.0197306]
[1732942884988,0.10369944,96860.0,96859.0,0.0107306]
[1732942885441,0.10369944,96860.0,96859.0,0.0167306]
[1732942885700,0.10269944,96860.0,96859.0,0.0077306]
[1732942885933,0.10369944,96860.0,96859.0,0.0107306]
[1732942886143,0.10269944,96860.0,96859.0,0.0017306]
[1732942886355,0.10269944,96860.0,96859.0,0.0077306]
[1732942886566,0.10369944,96860.0,96859.0,0.0167306]
[1732942895837,0.001,96860.0,96859.0,0.35451781]
[1732942896736,0.001,96860.0,96859.0,0.34551781]
[1732942896967,0.0008653,96867.0,96865.0,0.103236]
[1732942897216,0.0008653,96867.0,96863.0,0.103237]
[1732942897433,0.0008653,96867.0,96864.0,0.103237]
[1732942897662,0.0008653,96867.0,96861.0,0.206481]
[1732942897884,0.0008653,96867.0,96866.0,0.103235]
[1732942898757,0.0008653,96867.0,96864.0,0.007]
[1732942899180,0.0008653,96867.0,96865.0,0.103235]
[1732942899415,0.0008653,96867.0,96866.0,0.006]
[1732942899656,0.0008653,96867.0,96866.0,0.015]
[1732942899898,0.0008653,96867.0,96866.0,0.118235]
[1732942900561,0.0008653,96867.0,96866.0,0.109235]
[1732942900767,0.0008653,96867.0,96863.0,0.206477]
[1732942901006,0.0008653,96867.0,96865.0,0.103235]
[1732942901840,0.0008653,96867.0,96866.0,0.110235]
[1732942902009,0.0008653,96867.0,96866.0,0.007]
[1732942902283,0.0008653,96867.0,96865.0,0.112236]
[1732942902649,0.0008653,96867.0,96865.0,0.110236]
[1732942903052,0.0008653,96867.0,96866.0,0.009]
[1732942903252,0.0008653,96867.0,96865.0,0.110236]
[1732942903454,0.1024596,96872.0,96865.0,0.110236]
[1732942903857,0.1024596,96872.0,96865.0,0.103236]
[1732942904329,0.1024596,96872.0,96866.0,0.007]
[1732942904561,0.103231,96870.0,96866.0,0.007]
[1732942904784,0.0145771,96873.0,96865.0,0.009]
[1732942904992,0.0145771,96873.0,96865.0,0.015]
[1732942904993,0.103235,96866.0,96865.0,0.015]
[1732942905413,0.103235,96866.0,96865.0,0.006]
[1732942905612,0.206468,96867.0,96859.0,0.0017306]
[1732942905843,0.103241,96861.0,96859.0,0.0017306]
[1732942906060,0.103241,96860.0,96859.0,0.0017306]
[1732942907185,0.103241,96860.0,96859.0,0.0107306]
[1732942907368,0.103241,96860.0,96859.0,0.0017306]
[1732942908768,0.103241,96860.0,96859.0,0.0177306]
[1732942908987,0.103241,96860.0,96859.0,0.0087306]
[1732942909221,0.103241,96860.0,96859.0,0.0177306]
[1732942911070,0.103241,96860.0,96859.0,0.01741771]
[1732942911317,0.103241,96860.0,96859.0,0.01645595]
[1732942911544,0.103241,96860.0,96859.0,0.0161359]
[1732942934410,0.39817584,96860.0,96859.0,0.0161359]
[1732942934589,0.43170767,96860.0,96859.0,0.0161359]
[1732942934805,0.37909198,96860.0,96859.0,0.0161359]
[1732942935229,0.37909198,96860.0,96859.0,0.0091359]
[1732942935646,0.37909198,96860.0,96859.0,0.0131359]
[1732942936729,0.37909198,96860.0,96859.0,0.0091359]
[1732942938669,0.37909198,96860.0,96859.0,0.0101359]
[1732942939157,0.37909198,96860.0,96859.0,0.0091359]
[1732942939364,0.37909198,96860.0,96859.0,0.0001359]
[1732942940291,0.46929538,96860.0,96859.0,0.0001359]
[1732942940515,0.45962885,96860.0,96859.0,0.0001359]
[1732942940729,0.46928921,96860.0,96859.0,0.0001359]
[1732942941395,0.45928921,96860.0,96859.0,0.0001359]
[1732942941619,0.46928921,96860.0,96859.0,0.0001359]
[1732942941845,0.39008581,96860.0,96859.0,0.0001359]
[1732942942761,0.39208581,96860.0,96859.0,0.0001359]
[1732942943200,0.38208581,96860.0,96859.0,0.0001359]
[1732942944305,0.39208581,96860.0,96859.0,0.0001359]
[1732942947404,0.38242545,96860.0,96859.0,0.0001359]
[1732942947631,0.39207504,96860.0,96859.0,0.0001359]
[1732942949102,0.47257674,96860.0,96859.0,0.0001359]
[1732942949972,0.13622794,96848.0,96847.0,0.00059771]
[1732942950173,0.23907315,96848.0,96847.0,0.00059771]
[1732942950437,0.23907315,96848.0,96839.0,0.00173]
[1732942950438,0.36147315,96848.0,96839.0,0.00173]
[1732942950660,0.103263,96840.0,96839.0,0.00173]
[1732942950871,0.20610821,96840.0,96839.0,0.00173]
[1732942952625,0.20610821,96840.0,96839.0,0.00573]
[1732942952827,0.22685245,96840.0,96839.0,0.01373]
[1732942962258,0.22685245,96840.0,96839.0,0.13843]
[1732942963357,0.23651374,96840.0,96839.0,0.13843]
[1732942965992,0.23651374,96840.0,96839.0,0.06043]
[1732942967061,0.23651374,96840.0,96839.0,0.01373]
[1732942968770,0.22685245,96840.0,96839.0,0.01373]
[1732942968995,0.23653346,96840.0,96839.0,0.01373]
[1732942971977,0.23653528,96840.0,96839.0,0.01373]
[1732942972679,0.35620208,96840.0,96839.0,0.01373]
[1732942972897,0.26950922,96840.0,96839.0,0.01373]
[1732942973409,0.26950922,96840.0,96839.0,0.00973]
[1732942973625,0.26950922,96840.0,96839.0,0.01173]
[1732942974064,0.26950922,96840.0,96839.0,0.00973]
[1732942974289,0.26950922,96840.0,96839.0,0.00173]
[1732942974536,0.26950922,96840.0,96839.0,0.00373]
[1732942974745,0.26950922,96840.0,96839.0,0.00673]
[1732942975003,0.26950922,96840.0,96839.0,0.00373]
[1732942975481,0.26950922,96840.0,96839.0,0.00673]
[1732942982057,0.26950957,96840.0,96839.0,0.00673]
[1732942983856,0.26950957,96840.0,96839.0,0.05353]
[1732942983858,0.26950955,96840.0,96839.0,0.05353]
[1732942988881,0.26950955,96840.0,96839.0,0.00673]
[1732942989561,0.26951167,96840.0,96839.0,0.00673]
[1732942995186,0.30033684,96840.0,96839.0,0.00673]
[1732942998545,0.29065156,96840.0,96839.0,0.00673]
[1732943000772,0.30503163,96840.0,96839.0,0.00673]
[1732943000991,0.29065156,96840.0,96839.0,0.00673]
[1732943001466,0.30033767,96840.0,96839.0,0.00673]
[1732943002480,0.29065156,96840.0,96839.0,0.00673]
[1732943007231,0.28067762,96840.0,96839.0,0.00673]
[1732943007441,0.15483241,96840.0,96839.0,0.13093]
[1732943018986,0.2174818,96840.0,96839.0,0.13093]
[1732943035177,0.2174818,96840.0,96839.0,0.14641647]
[1732943036620,0.2174818,96840.0,96839.0,0.07101647]
[1732943036846,0.34332701,96840.0,96839.0,0.02221647]
[1732943040829,0.2174818,96840.0,96839.0,0.14481647]
[1732943046394,0.09347456,96840.0,96839.0,0.14481647]
[1732943046619,0.09347456,96840.0,96839.0,0.24808047]
[1732943046849,0.09347456,96840.0,96839.0,0.35092568]
[1732943047289,0.09347456,96840.0,96839.0,0.34892568]
[1732943047738,0.09347456,96840.0,96839.0,0.34992568]
[1732943047933,0.09347456,96840.0,96839.0,0.35892568]
[1732943049145,0.09347456,96840.0,96839.0,0.36389704]
[1732943049595,0.09347456,96840.0,96839.0,0.37089704]
[1732943049928,0.09347456,96840.0,96839.0,0.36389704]
[1732943050584,0.09347456,96840.0,96839.0,0.35389704]
[1732943050802,0.09347456,96840.0,96839.0,0.36289704]
[1732943052951,0.09347456,96840.0,96839.0,0.15677028]
[1732943053324,0.09347456,96840.0,96839.0,0.14877028]
[1732943053536,0.09347456,96840.0,96839.0,0.14777028]
[1732943054119,0.103261,96842.0,96839.0,0.14777028]
[1732943054482,0.103261,96842.0,96840.0,0.01544028]
[1732943054712,0.01107451,96846.0,96841.0,0.01544028]
[1732943054918,0.01107451,96846.0,96842.0,0.01544028]
[1732943055124,0.10326,96843.0,96842.0,0.01544028]
[1732943055353,0.10326,96843.0,96842.0,0.02572472]
[1732943056426,0.10326,96843.0,96842.0,0.03372472]
[1732943056629,0.10326,96843.0,96842.0,0.02343483]
[1732943057288,0.10326,96843.0,96842.0,0.03243483]
[1732943057477,0.10326,96843.0,96842.0,0.02343483]
[1732943057920,0.10326,96843.0,96842.0,0.03243483]
[1732943060604,0.10326,96843.0,96842.0,0.03416583]
[1732943070375,0.10326,96843.0,96842.0,0.018731]
[1732943070595,0.10326,96843.0,96842.0,0.034187]
[1732943074547,0.10326,96843.0,96842.0,0.044491]
[1732943075290,0.10326,96843.0,96842.0,0.034187]
[1732943076353,0.10243837,96843.0,96842.0,0.034187]
[1732943081170,0.10243837,96843.0,96842.0,0.018731]
[1732943081417,0.10243837,96843.0,96842.0,0.03421815]
[1732943082908,0.10243837,96843.0,96842.0,0.018731]
[1732943094956,0.2073784,96847.0,96840.0,0.044129]
[1732943095190,0.2073784,96847.0,96839.0,0.00173]
[1732943095191,0.103263,96840.0,96839.0,0.00173]
[1732943096934,0.103263,96840.0,96839.0,0.01073]
[1732943096935,0.104263,96840.0,96839.0,0.01073]
[1732943098599,0.104263,96840.0,96839.0,0.01873]
[1732943098600,0.105263,96840.0,96839.0,0.01873]
[1732943108197,0.20810821,96840.0,96839.0,0.01873]
[1732943108416,0.33540821,96840.0,96839.0,0.01873]
[1732943109078,0.33440821,96840.0,96839.0,0.00973]
[1732943109522,0.33540821,96840.0,96839.0,0.01573]
[1732943109744,0.33440821,96840.0,96839.0,0.00773]
[1732943109972,0.33440821,96840.0,96839.0,0.01073]
[1732943110423,0.33340821,96840.0,96839.0,0.00473]
[1732943110645,0.33440821,96840.0,96839.0,0.01073]
[1732943111095,0.33440821,96840.0,96839.0,0.00773]
[1732943111300,0.33440821,96840.0,96839.0,0.01073]
[1732943115198,0.36738215,96840.0,96839.0,0.01073]
[1732943118992,0.36824765,96840.0,96839.0,0.01073]
[1732943119269,0.23097371,96840.0,96839.0,0.01073]
[1732943119425,0.1051285,96840.0,96839.0,0.02069]
[1732943119630,0.1051285,96840.0,96839.0,0.15059]
[1732943127531,0.1051285,96840.0,96839.0,0.10269]
[1732943131981,0.10913708,96840.0,96839.0,0.10269]
[1732943133490,0.10913708,96840.0,96839.0,0.02069]
[1732943145328,0.0008654,96847.0,96846.0,0.103256]
[1732943145538,0.0008654,96847.0,96846.0,0.32930121]
[1732943147012,0.0008654,96847.0,96846.0,0.33830121]
[1732943148274,0.0018654,96847.0,96846.0,0.34630121]
[1732943149330,0.1042204,96866.0,96846.0,0.34630121]
[1732943149331,0.23198556,96917.0,96846.0,0.34630121]
[1732943149547,0.31318051,96933.0,96857.0,0.01]
[1732943149548,0.103241,96860.0,96857.0,0.01]
[1732943149757,0.0009945,96866.0,96857.0,0.01]
[1732943149973,0.103238,96863.0,96857.0,0.01]
[1732943150590,0.103239,96862.0,96857.0,0.01]
[1732943150809,0.206452,96875.0,96858.0,0.0757]
[1732943151035,0.10324,96862.0,96858.0,0.0757]
[1732943152154,0.516137,96873.0,96858.0,0.0757]
[1732943152398,0.10324,96862.0,96858.0,0.0807]
[1732943152617,0.206475,96865.0,96858.0,0.0807]
[1732943152833,0.103239,96862.0,96858.0,0.0887]
[1732943153039,0.103241,96861.0,96858.0,0.0807]
[1732943153249,0.103241,96860.0,96858.0,0.0837]
[1732943153477,0.10284521,96872.0,96858.0,0.0837]
[1732943153678,0.103242,96859.0,96858.0,0.0757]
[1732943153887,0.103242,96859.0,96858.0,0.0847]
[1732943154098,0.10942539,96859.0,96858.0,0.0847]
[1732943154275,0.10942539,96859.0,96858.0,0.0827]
[1732943154691,0.10942539,96859.0,96858.0,0.0837]
[1732943155119,0.10942539,96859.0,96858.0,0.0757]
[1732943155343,0.10942539,96859.0,96858.0,0.0887]
[1732943155862,0.10942539,96859.0,96858.0,0.0807]
[1732943155985,0.10942539,96859.0,96858.0,0.0887]
[1732943156186,0.10942539,96859.0,96858.0,0.0807]
[1732943156480,0.10942539,96859.0,96858.0,0.014]
[1732943156879,0.10942539,96859.0,96858.0,0.005]
[1732943157362,0.00618339,96859.0,96857.0,0.01]
[1732943157516,0.30973,96858.0,96857.0,0.01]
[1732943157918,0.31591339,96858.0,96857.0,0.01]
[1732943158298,0.103249,96853.0,96852.0,0.01]
[1732943158731,0.21617284,96858.0,96857.0,0.01]
[1732943158939,0.30973,96858.0,96857.0,0.01]
[1732943159124,0.32559922,96858.0,96857.0,0.01]
[1732943159298,0.32559922,96858.0,96857.0,0.009]
[1732943159508,0.103244,96857.0,96856.0,0.01]
[1732943160075,0.103244,96857.0,96846.0,0.04809771]
[1732943160076,0.103255,96847.0,96846.0,0.13379771]
[1732943160709,0.11250845,96847.0,96846.0,0.13379771]
[1732943161115,0.11250845,96847.0,96846.0,0.07629771]